fUSD/lending_fUSD_20260116
["ID","MTS","AMOUNT","RATE_DAILY","PERIOD"]
[402168602,1768561832153,-287.0,0.00016333,2]
[402168604,1768561832162,-151.0,0.00016444,2]
[402168605,1768561832172,-145.42149612,0.00016476,2]
[402168606,1768561832181,-500.0,0.00016476,2]
[402168607,1768561832190,-171.25216261,0.00016513,2]
[402168608,1768561832200,-200.0,0.00016528,2]
[402168609,1768561832210,-455.11160511,0.00016613,2]
[402168610,1768561832221,-1864.3836981,0.00016613,2]
[402168611,1768561832233,-1225.58469679,0.00016613,2]
[402168612,1768561832243,-20.00267393,0.00016858,2]
[402168613,1768561832258,-279.99732607,0.00016858,2]
[402168614,1768561832268,-1200.0,0.00016858,2]
[402168615,1768561832278,-300.0,0.00016858,2]
[402168616,1768561832287,-2552.35230367,0.00016859,2]
[402168617,1768561832301,-292.67,0.0001689,2]
[402168618,1768561832310,-292.67,0.0001689,2]
[402168619,1768561832319,-292.67,0.0001689,2]
[402168620,1768561832328,-292.67,0.0001689,2]
[402168621,1768561832337,-292.67,0.0001689,2]
[402168622,1768561832346,-500.0,0.00016899,2]
[402168623,1768561832355,-215.33729041,0.00016899,2]
[402168624,1768561832365,-500.0,0.00016899,2]
[402168625,1768561832374,-349.10281111,0.00016899,2]
[402168626,1768561832385,-150.89718889,0.00016899,2]
[402168627,1768561832394,-500.0,0.00016899,2]
[402168628,1768561832403,-500.0,0.00016899,2]
[402168629,1768561832413,-500.0,0.00016899,2]
[402168630,1768561832423,-500.0,0.00016899,2]
[402168631,1768561832432,-500.0,0.00016899,2]
[402168632,1768561832441,-87.43879484,0.00016899,2]
[402168633,1768561832452,-412.56120516,0.00016899,2]
[402168634,1768561832461,-88.4420369,0.00016899,2]
[402168635,1768561832476,-292.97700002,0.00016899,2]
[402168636,1768561832491,-118.58096308,0.00016899,2]
[402168637,1768561832500,-500.0,0.00016899,2]
[402168638,1768561832509,-500.0,0.00016899,2]
[402168639,1768561832518,-500.0,0.00016899,2]
[402168640,1768561832527,-230.55394838,0.00016899,2]
[402168641,1768561832539,-269.44605162,0.00016899,2]
[402168642,1768561832548,-320.75457041,0.00016899,2]
[402168643,1768561832559,-179.24542959,0.00016899,2]
[402168644,1768561832859,-371.23573525,0.00016899,2]
[402168645,1768561832868,-500.0,0.00016899,2]
[402168646,1768561832878,-500.0,0.00016899,2]
[402168647,1768561832887,-481.27988439,0.00016899,2]
[402168648,1768561832902,-18.72011561,0.00016899,2]
[402168649,1768561832914,-500.0,0.00016899,2]
[402168650,1768561832923,-500.0,0.00016899,2]
[402168651,1768561832932,-500.0,0.00016899,2]
[402168652,1768561832942,-500.0,0.00016899,2]
[402168653,1768561832951,-500.0,0.00016899,2]
[402168654,1768561832961,-500.0,0.00016899,2]
[402168655,1768561832971,-500.0,0.00016899,2]
[402168656,1768561832983,-500.0,0.00016899,2]
[402168657,1768561832993,-500.0,0.00016899,2]
[402168658,1768561833002,-500.0,0.00016899,2]
[402168659,1768561833012,-500.0,0.00016899,2]
[402168660,1768561833021,-500.0,0.00016899,2]
[402168661,1768561833030,-500.0,0.00016899,2]
[402168662,1768561833040,-500.0,0.00016899,2]
[402168663,1768561833049,-500.0,0.00016899,2]
[402168664,1768561833059,-500.0,0.00016899,2]
[402168665,1768561833068,-500.0,0.00016899,2]
[402168666,1768561833077,-500.0,0.00016899,2]
[402168667,1768561833087,-500.0,0.00016899,2]
[402168668,1768561833096,-500.0,0.00016899,2]
[402168669,1768561833105,-500.0,0.00016899,2]
[402168670,1768561833114,-168.93457683,0.00016899,2]
[402168671,1768561833126,-331.06542317,0.00016899,2]
[402168672,1768561833135,-500.0,0.00016899,2]
[402168673,1768561833144,-500.0,0.00016899,2]
[402168674,1768561833154,-500.0,0.00016899,2]
[402168675,1768561833163,-500.0,0.00016899,2]
[402168676,1768561833172,-8.17029514,0.00016899,2]
[402168677,1768561833183,-491.82970486,0.00016899,2]
[402168678,1768561833193,-500.0,0.00016899,2]
[402168679,1768561833202,-367.52739512,0.00016899,2]
[402168680,1768561833213,-132.47260488,0.00016899,2]
[402168681,1768561833222,-117.52739512,0.00016899,2]
[402168682,1768561833233,-382.47260488,0.00016899,2]
[402168683,1768561833242,-193.27739512,0.00016899,2]
[402168684,1768561833253,-306.72260488,0.00016899,2]
[402168685,1768561833262,-500.0,0.00016899,2]
[402168686,1768561833271,-81.4236074,0.00016899,2]
[402168692,1768561838167,-530.42704306,0.000168,2]
[402168693,1768561838178,-418.5763926,0.00016899,2]
[402168694,1768561838187,-500.0,0.00016899,2]
[402168695,1768561838196,-500.0,0.00016899,2]
[402168696,1768561838206,-500.0,0.00016899,2]
[402168697,1768561838215,-500.0,0.00016899,2]
[402168698,1768561838224,-500.0,0.00016899,2]
[402168699,1768561838233,-500.0,0.00016899,2]
[402168700,1768561838242,-500.0,0.00016899,2]
[402168701,1768561838251,-500.0,0.00016899,2]
[402168702,1768561838260,-65.38656434,0.00016899,2]
[402168703,1768561838271,-434.61343566,0.00016899,2]
[402168704,1768561838281,-500.0,0.00016899,2]
[402168705,1768561838290,-462.17550413,0.00016899,2]
[402168706,1768561838301,-37.82449587,0.00016899,2]
[402168707,1768561838312,-500.0,0.00016899,2]
[402168708,1768561838322,-500.0,0.00016899,2]
[402168709,1768561838331,-500.0,0.00016899,2]
[402168710,1768561838341,-500.0,0.00016899,2]
[402168711,1768561838350,-500.0,0.00016899,2]
[402168712,1768561838359,-500.0,0.00016899,2]
[402168713,1768561838368,-500.0,0.00016899,2]
[402168714,1768561838378,-500.0,0.00016899,2]
[402168715,1768561838388,-500.0,0.00016899,2]
[402168716,1768561838397,-500.0,0.00016899,2]
[402168717,1768561838407,-500.0,0.00016899,2]
[402168718,1768561838416,-571.97850956,0.00016899,2]
[402168719,1768561838426,-400.0,0.00016899,2]
[402168720,1768561838435,-259.66169112,0.00016899,2]
[402168721,1768561838447,-240.33830888,0.00016899,2]
[402168722,1768561838457,-133.0426067,0.00016899,2]
[402168723,1768561838469,-366.9573933,0.00016899,2]
[402168724,1768561838479,-500.0,0.00016899,2]
[402168725,1768561838488,-500.0,0.00016899,2]
[402168726,1768561838495,-175.16695089,0.00016899,2]
[402168727,1768561838504,-324.83304911,0.00016899,2]
[402168728,1768561838510,-313.72232466,0.00016899,2]
[402168729,1768561838518,-186.27767534,0.00016899,2]
[402168730,1768561838526,-500.0,0.00016899,2]
[402168731,1768561838533,-500.0,0.00016899,2]
[402168732,1768561838540,-500.0,0.00016899,2]
[402168733,1768561838549,-500.0,0.00016899,2]
[402168734,1768561838558,-500.0,0.00016899,2]
[402168735,1768561838566,-500.0,0.00016899,2]
[402168736,1768561838574,-500.0,0.00016899,2]
[402168737,1768561838582,-500.0,0.00016899,2]
[402168738,1768561838589,-500.0,0.00016899,2]
[402168739,1768561838596,-500.0,0.00016899,2]
[402168740,1768561838603,-500.0,0.00016899,2]
[402168741,1768561838611,-500.0,0.00016899,2]
[402168742,1768561838618,-500.0,0.00016899,2]
[402168743,1768561838624,-500.0,0.00016899,2]
[402168744,1768561838632,-500.0,0.00016899,2]
[402168745,1768561838641,-500.0,0.00016899,2]
[402168746,1768561838648,-350.0,0.00016899,2]
[402168747,1768561838656,-500.0,0.00016899,2]
[402168748,1768561838665,-500.0,0.00016899,2]
[402168749,1768561838674,-500.0,0.00016899,2]
[402168750,1768561838683,-500.0,0.00016899,2]
[402168751,1768561838692,-500.0,0.00016899,2]
[402168752,1768561838701,-500.0,0.00016899,2]
[402168753,1768561838711,-474.46565583,0.00016899,2]
[402168754,1768561838720,-500.0,0.00016899,2]
[402168755,1768561838729,-500.0,0.00016899,2]
[402168756,1768561838738,-500.0,0.00016899,2]
[402168757,1768561838748,-500.0,0.00016899,2]
[402168758,1768561838758,-500.0,0.00016899,2]
[402168759,1768561838767,-500.0,0.00016899,2]
[402168760,1768561838777,-500.0,0.00016899,2]
[402168761,1768561838786,-500.0,0.00016899,2]
[402168762,1768561838795,-500.0,0.00016899,2]
[402168763,1768561838805,-500.0,0.00016899,2]
[402168764,1768561838814,-500.0,0.00016899,2]
[402168765,1768561838823,-500.0,0.00016899,2]
[402168766,1768561838834,-500.0,0.00016899,2]
[402168767,1768561838844,-500.0,0.00016899,2]
[402168768,1768561838854,-5.57677558,0.00016899,2]
[402168769,1768561838866,-494.42322442,0.00016899,2]
[402168770,1768561838876,-500.0,0.00016899,2]
[402168771,1768561838885,-650.0,0.00016899,2]
[402168772,1768561838895,-500.0,0.00016899,2]
[402168773,1768561838904,-22825.57560255,0.000169,2]
[402168774,1768561838918,-400.0,0.000169,2]
[402168775,1768561838930,-4760.35,0.000169,2]
[402168776,1768561838941,-656056.96509745,0.000169,2]
[402168777,1768561838951,-159.0,0.000169,2]
[402168778,1768561838961,-500.0,0.00016959,2]
[402168779,1768561838970,-2552.35230359,0.00016975,2]
[402168780,1768561838980,-447.0,0.00016989,2]
[402168781,1768561838989,-500.0,0.0001699,2]
[402168782,1768561838998,-200.0,0.0001699,2]
[402168783,1768561839007,-200.0,0.0001699,2]
[402168784,1768561839017,-151.0,0.0001699,2]
[402168785,1768561839026,-151.0,0.0001699,2]
[402168786,1768561839035,-151.0,0.0001699,2]
[402168787,1768561839045,-151.0,0.0001699,2]
[402168788,1768561839054,-151.0,0.0001699,2]
[402168789,1768561839063,-151.0,0.0001699,2]
[402168790,1768561839073,-151.0,0.0001699,2]
[402168791,1768561839082,-151.0,0.0001699,2]
[402168792,1768561839091,-151.0,0.0001699,2]
[402168793,1768561839100,-200.0,0.0001699,2]
[402168794,1768561839109,-151.0,0.0001699,2]
[402168795,1768561839119,-20000.0,0.00017,2]
[402168796,1768561839128,-166.66,0.00017003,2]
[402168797,1768561839137,-2552.35230359,0.0001709,2]
[402168798,1768561839147,-168.0,0.00017157,2]
[402168799,1768561839156,-453.0,0.00017173,2]
[402168800,1768561839165,-1368.43126701,0.00017206,2]
[402168801,1768561839241,-501.94939844,0.00017206,2]
[402168802,1768561839252,-681.97163814,0.00017206,2]
[402168803,1768561839261,-150.22836157,0.0001724,2]
[402168804,1768561839272,-22.36163843,0.0001724,2]
[402168805,1768561839281,-668.578,0.00017252,2]
[402168806,1768561839291,-179.8639743,0.0001726,2]
[402168807,1768561839300,-1298.78535083,0.0001726,2]
[402168808,1768561839311,-2094.8080549,0.0001726,2]
[402168809,1768561839319,-2552.35230359,0.00017322,2]
[402168810,1768561839329,-3393.59340569,0.00017331,2]
[402168811,1768561839337,-3755.30501849,0.00017332,2]
[402168812,1768561839346,-150.0,0.00017334,2]
[402168813,1768561839355,-1115.69,0.00017342,2]
[402168814,1768561839364,-172.65363354,0.00017344,2]
[402168815,1768561839373,-1000.0,0.00017345,2]
[402168816,1768561839383,-300.0,0.0001735,2]
[402168817,1768561839392,-250.0,0.0001735,2]
[402168818,1768561839400,-502.00518748,0.00017351,2]
[402168819,1768561839409,-500.0,0.00017351,2]
[402168820,1768561839418,-500.0,0.00017351,2]
[402168821,1768561839427,-500.0,0.00017351,2]
[402168822,1768561839436,-500.0,0.00017351,2]
[402168823,1768561839445,-500.0,0.00017351,2]
[402168824,1768561839454,-500.0,0.00017351,2]
[402168825,1768561839463,-292.42921136,0.00017351,2]
[402168826,1768561839473,-507.4251083,0.00017351,2]
[402168827,1768561839483,-578.77910632,0.00017351,2]
[402168828,1768561839493,-186.60912116,0.00017351,2]
[402168829,1768561839502,-508.72192714,0.00017351,2]
[402168830,1768561839511,-500.0,0.00017351,2]
[402168831,1768561839520,-500.0,0.00017351,2]
[402168832,1768561839530,-500.0,0.00017351,2]
[402168833,1768561839539,-179.37709203,0.00017351,2]
[402168834,1768561839548,-250.73219842,0.0001736,2]
[402168835,1768561839559,-159.0,0.000174,2]
[402168836,1768561839569,-3393.59340569,0.00017402,2]
[402168837,1768561839578,-172.65363352,0.00017423,2]
[402168838,1768561839588,-2552.35230359,0.00017437,2]
[402168839,1768561839597,-500.0,0.00017444,2]
[402168840,1768561839606,-317.23562895,0.00017444,2]
[402168841,1768561839614,-179.86397427,0.00017473,2]
[402168842,1768561839623,-3393.59340569,0.00017473,2]
[402168843,1768561839632,-201.0,0.00017479,2]
[402168844,1768561839641,-150.0,0.00017482,2]
[402168845,1768561839651,-1250.0,0.000175,2]
[402168846,1768561839660,-172.65363352,0.00017503,2]
[402168847,1768561839670,-500.0,0.00017538,2]
[402168848,1768561839679,-306.46934365,0.00017538,2]
[402168849,1768561839688,-3393.59340569,0.00017544,2]
[402168850,1768561839698,-500.0,0.00017546,2]
[402168851,1768561839707,-502.89153827,0.00017546,2]
[402168852,1768561839715,-273.05006133,0.00017546,2]
[402168853,1768561839726,-226.94993867,0.00017546,2]
[402168854,1768561839735,-551.14146089,0.00017546,2]
[402168855,1768561839744,-511.15337826,0.00017546,2]
[402168856,1768561839753,-500.0,0.00017546,2]
[402168857,1768561839763,-500.0,0.00017546,2]
[402168858,1768561839772,-507.31602648,0.00017546,2]
[402168859,1768561839781,-2552.35230359,0.00017553,2]
[402168860,1768561839790,-166.66,0.00017564,2]
[402168861,1768561839799,-172.65363352,0.00017582,2]
[402168862,1768561839808,-3393.59340569,0.00017616,2]
[402168863,1768561839817,-1115.69,0.00017616,2]
[402168864,1768561839826,-172.65363352,0.00017662,2]
[402168865,1768561839838,-150.0,0.00017666,2]
[402168866,1768561839849,-2552.35230359,0.00017669,2]
[402168867,1768561839858,-150.0,0.0001767,2]
[402168868,1768561839868,-150.0,0.0001767,2]
[402168869,1768561839877,-150.0,0.0001767,2]
[402168870,1768561839886,-500.0,0.0001767,2]
[402168871,1768561839896,-179.86397427,0.00017687,2]
[402168872,1768561839905,-3393.59340569,0.00017687,2]
[402168873,1768561839915,-150.0,0.00017725,2]
[402168874,1768561839924,-500.0,0.00017725,2]
[402168875,1768561839933,-172.65363352,0.00017741,2]
[402168876,1768561839943,-3393.59340569,0.00017758,2]
[402168877,1768561839952,-150.0,0.00017762,2]
[402168878,1768561839961,-150.0,0.0001778,2]
[402168879,1768561839972,-500.0,0.0001778,2]
[402168880,1768561839981,-2552.35230359,0.00017784,2]
[402168881,1768561839991,-1333.33333,0.0001782,2]
[402168882,1768561840001,-1333.33333,0.0001782,2]
[402168883,1768561840011,-172.65363352,0.00017821,2]
[402168884,1768561840021,-3393.59340569,0.00017829,2]
[402168885,1768561840031,-206.18320436,0.00017834,2]
[402168886,1768561840041,-500.0,0.00017834,2]
[402168887,1768561840051,-180.5975617,0.00017855,14]
[402168888,1768561840062,-270.16315148,0.00017855,14]
[402168889,1768561840071,-365.5377,0.00017855,14]
[402168890,1768561840081,-500.0,0.00017889,2]
[402168891,1768561840091,-1115.69,0.0001789,2]
[402168892,1768561840100,-25000.0,0.00017891,3]
[402168893,1768561840109,-6419.95329523,0.000179,3]
[402168894,1768561840118,-172.65363352,0.000179,2]
[402168895,1768561840128,-10000.0,0.000179,2]
[402168896,1768561840140,-25000.0,0.000179,3]
[402168897,1768561840151,-881.36557324,0.000179,2]
[402168898,1768561840161,-179.86397427,0.000179,2]
[402168899,1768561840171,-5019.82053718,0.000179,3]
[402168900,1768561840180,-3393.59340569,0.000179,2]
[402168901,1768561840190,-2552.35230359,0.000179,2]
[402168902,1768561840199,-4631.0,0.000179,2]
[402168903,1768561840209,-150.0,0.00017912,2]
[402168905,1768561840217,-500.0,0.00017944,2]
[402168906,1768561840226,-190.72031864,0.00017966,2]
[402168907,1768561840235,-608.61424855,0.00017998,2]
[402168908,1768561840244,-28237.0885196,0.00017998,2]
[402168909,1768561840254,-4948.3621645,0.00017998,2]
[402168910,1768561840263,-500.0,0.00017999,2]
[402168911,1768561840273,-111735.55215531,0.00017999,2]
[402168912,1768561840338,-1315.45378379,0.00017999,2]
[402168913,1768561840349,-6423.6780157,0.00017999,2]
[402168914,1768561840358,-18272.2795768,0.00017999,2]
[402168915,1768561840367,-300.0,0.00017999,2]
[402168916,1768561840377,-300.0,0.00017999,2]
[402168917,1768561840386,-27534.2633758,0.00018,2]
[402168918,1768561840405,-3341.54631403,0.00018,2]
[402168919,1768561840416,-90990.2761422,0.00018,2]
[402168920,1768561840561,-869.83442252,0.00018,2]
[402168921,1768561840573,-965.92,0.00018,2]
[402168922,1768561840589,-438.18475465,0.00018,2]
[402168923,1768561840600,-6799382.43375643,0.00018,2]
[402168924,1768561840640,-647.40510334,0.00018,2]
[402168925,1768561840651,-2325.27640236,0.00018,2]
[402168939,1768561843352,-4034.18066026,0.00018,2]
[402168940,1768561843363,-27223.85636467,0.00018,2]
[402168941,1768561843405,-2386.97270748,0.00018,2]
[402168942,1768561843460,-2071.16187536,0.00018,2]
[402168944,1768561846291,-332.818322,0.000179,2]
[402168945,1768561846371,-667.181678,0.000179,2]
[402168946,1768561846380,-8857.818322,0.00018,2]
[402168947,1768561846591,-7415.94707886,0.00018,2]
[402168948,1768561928060,500.0,0.00015773,2]
[402168949,1768561933020,500.0,0.00015773,2]
[402168950,1768561939041,878.65,8.55e-05,2]
[402168951,1768561939264,878.65,9e-05,2]
[402168952,1768561939463,878.65,9.45e-05,2]
[402168953,1768561939689,878.65,9.9e-05,2]
[402168954,1768561939919,878.65,0.0001035,2]
[402168955,1768561940141,878.65,0.000108,2]
[402168956,1768561940344,878.65,0.0001125,2]
[402168957,1768561940539,878.65,0.000117,2]
[402168958,1768561940744,878.65,0.0001215,2]
[402168959,1768561940944,286.56433904,0.000126,2]
[402168960,1768561940971,592.08566096,0.000126,2]
[402168961,1768561941183,878.65,0.0001305,2]
[402168962,1768561941381,878.65,0.000135,2]
[402168963,1768561941587,878.65,0.0001395,2]
[402168964,1768561941783,878.65,0.000144,2]
[402168965,1768561941975,878.65,0.0001485,2]
[402168966,1768561942167,878.65,0.000153,2]
[402168967,1768561979077,159.0,0.000301,120]
[402168968,1768562001969,166.0,0.000301,120]
[402168970,1768562725137,169.11635553,0.00030137,120]
[402168975,1768562833147,-862.71311128,0.0001575,2]
[402168976,1768562849086,-15.93688872,0.0001575,2]
[402168977,1768562849108,-185.62668179,0.00015753,2]
[402168978,1768562865579,4425.20915937,0.00013,2]
[402168979,1768562889092,212.74395336,0.000135,2]
[402168980,1768562901134,217.81537361,0.0002941,120]
[402168982,1768562951696,-9.37331821,0.00015753,2]
[402168983,1768562951718,-2500.0,0.00015755,2]
[402168984,1768562951740,-1200.0,0.00015772,2]
[402168985,1768562951760,-447.0,0.00015772,2]
[402168986,1768562951782,-300.0,0.00015772,2]
[402168987,1768562951802,-500.0,0.00015773,2]
[402168988,1768562951822,-500.0,0.00015773,2]
[402168989,1768562951842,-500.0,0.00015773,2]
[402168990,1768562951863,-333.82125986,0.00015773,2]
[402168991,1768562951883,-500.0,0.00015773,2]
[402168992,1768562951902,-500.0,0.00015773,2]
[402168993,1768562951922,-500.0,0.00015773,2]
[402168994,1768562951943,-151.37508259,0.00015773,2]
[402168995,1768562954093,-348.62491741,0.00015773,2]
[402168996,1768562954114,-500.0,0.00015773,2]
[402168997,1768562954134,-183.83466196,0.00016007,2]
[402168998,1768562959129,-500.0,0.00015773,2]
[402168999,1768562959151,-500.0,0.00015773,2]
[402169000,1768562959171,-500.0,0.00015773,2]
[402169001,1768562959191,-16.17533804,0.00016007,2]
[402169002,1768562959212,-150.0,0.00016083,2]
[402169003,1768562960256,500.0,0.00015773,2]
[402169004,1768563004603,500.0,0.00015773,2]
[402169005,1768563013786,179.65579077,0.00015773,2]
[402169006,1768563016390,500.0,0.00015773,2]
[402169111,1768563037325,-878.65,0.000162,2]
[402169112,1768563037335,-1500.0,0.000162,2]
[402169113,1768563037345,-300.0,0.0001632,2]
[402169115,1768563037354,-1200.0,0.0001632,2]
[402169117,1768563037365,-510.0,0.0001632,2]
[402169118,1768563037375,-1000.0,0.00016321,2]
[402169119,1768563037384,-1118.07402305,0.00016321,2]
[402169120,1768563037394,-1000.0,0.00016321,2]
[402169121,1768563037405,-502.14924214,0.00016321,2]
[402169122,1768563037414,-1000.0,0.00016321,2]
[402169123,1768563037423,-1000.0,0.00016321,2]
[402169124,1768563037432,-1000.0,0.00016321,2]
[402169125,1768563037441,-117.9794406,0.00016321,2]
[402169126,1768563037461,-882.0205594,0.00016321,2]
[402169127,1768563037470,-801.83430165,0.00016438,2]
[402169128,1768563037479,-815.0,0.00016438,2]
[402169129,1768563037488,-700.63431733,0.00016463,2]
[402169130,1768563037499,-224.86868267,0.00016463,2]
[402169131,1768563037508,-453.0,0.00016515,2]
[402169132,1768563037518,-207.417881,0.00016515,2]
[402169133,1768563037527,-500.73610328,0.00016515,2]
[402169134,1768563037536,-500.0,0.00016515,2]
[402169135,1768563037544,-500.0,0.00016515,2]
[402169136,1768563037553,-500.0,0.00016515,2]
[402169137,1768563037563,-500.0,0.00016515,2]
[402169138,1768563037572,-402.44656559,0.00016515,2]
[402169139,1768563037582,-211.53076746,0.00016515,2]
[402169140,1768563037595,-288.46923254,0.00016515,2]
[402169141,1768563037605,-135.95078683,0.00016515,2]
[402169142,1768563037619,-364.04921317,0.00016515,2]
[402169143,1768563037628,-500.0,0.00016515,2]
[402169144,1768563037637,-500.0,0.00016515,2]
[402169145,1768563037646,-500.0,0.00016515,2]
[402169147,1768563037655,-500.0,0.00016515,2]
[402169149,1768563037664,-500.0,0.00016515,2]
[402169151,1768563037673,-500.0,0.00016515,2]
[402169153,1768563037681,-500.0,0.00016515,2]
[402169155,1768563037690,-500.0,0.00016515,2]
[402169156,1768563037699,-500.0,0.00016515,2]
[402169158,1768563037708,-500.0,0.00016515,2]
[402169161,1768563037718,-500.0,0.00016515,2]
[402169162,1768563037727,-500.0,0.00016515,2]
[402169164,1768563037736,-500.0,0.00016515,2]
[402169166,1768563037745,-500.0,0.00016515,2]
[402169168,1768563037754,-500.0,0.00016515,2]
[402169170,1768563037763,-500.0,0.00016515,2]
[402169172,1768563037771,-500.0,0.00016515,2]
[402169174,1768563037780,-500.0,0.00016515,2]
[402169175,1768563037790,-169.1234532,0.00016515,2]
[402169176,1768563037801,-330.8765468,0.00016515,2]
[402169177,1768563037811,-314.16376624,0.00016515,2]
[402169178,1768563037821,-386.24127578,0.00016515,2]
[402169179,1768563037841,-113.75872422,0.00016515,2]
[402169180,1768563037850,-500.0,0.00016515,2]
[402169181,1768563037860,-500.0,0.00016515,2]
[402169182,1768563037869,-428.2629972,0.00016515,2]
[402169183,1768563037881,-71.7370028,0.00016515,2]
[402169184,1768563037891,-352.07324063,0.00016515,2]
[402169185,1768563037903,-147.92675937,0.00016515,2]
[402169186,1768563037913,-190.76562599,0.00016515,2]
[402169187,1768563037925,-309.23437401,0.00016515,2]
[402169188,1768563037934,-500.0,0.00016515,2]
[402169189,1768563037944,-500.0,0.00016515,2]
[402169190,1768563037953,-500.0,0.00016515,2]
[402169191,1768563037962,-500.0,0.00016515,2]
[402169192,1768563037971,-500.0,0.00016515,2]
[402169193,1768563037981,-500.0,0.00016515,2]
[402169194,1768563037991,-500.0,0.00016515,2]
[402169195,1768563038000,-500.0,0.00016515,2]
[402169196,1768563038009,-500.0,0.00016515,2]
[402169197,1768563038018,-500.0,0.00016515,2]
[402169198,1768563038027,-500.0,0.00016515,2]
[402169199,1768563038037,-500.0,0.00016515,2]
[402169200,1768563038047,-500.0,0.00016515,2]
[402169201,1768563038056,-300.0,0.00016515,2]
[402169202,1768563038066,-500.0,0.00016515,2]
[402169203,1768563038075,-466.86901852,0.00016515,2]
[402169204,1768563038085,-1000000.0,0.00016516,2]
[402169205,1768563038094,-172.59504762,0.00016516,2]
[402169206,1768563038104,-4577.78931765,0.00016516,2]
[402169207,1768563038114,-55091.95,0.00016616,2]
[402169208,1768563038123,-878.65,0.0001665,2]
[402169209,1768563038134,-4577.78931763,0.0001667,2]
[402169210,1768563038143,-200.0,0.00016789,2]
[402169211,1768563038153,-200.0,0.00016789,2]
[402169212,1768563038163,-151.0,0.00016789,2]
[402169213,1768563038172,-151.0,0.00016789,2]
[402169214,1768563038182,-151.0,0.00016789,2]
[402169215,1768563038191,-151.0,0.00016789,2]
[402169216,1768563038202,-151.0,0.00016789,2]
[402169217,1768563038211,-151.0,0.00016789,2]
[402169218,1768563038220,-151.0,0.00016789,2]
[402169219,1768563038230,-151.0,0.00016789,2]
[402169220,1768563038239,-151.0,0.00016789,2]
[402169221,1768563038250,-151.0,0.00016789,2]
[402169222,1768563038259,-200.0,0.00016789,2]
[402169223,1768563038269,-500.0,0.00016789,2]
[402169224,1768563038279,-172.5950476,0.00016793,2]
[402169225,1768563038290,-1092.39,0.00016796,2]
[402169226,1768563038299,-4577.78931763,0.00016824,2]
[402169227,1768563038309,-500.0,0.00016868,2]
[402169228,1768563038320,-500.0,0.00016868,2]
[402169229,1768563038329,-500.0,0.00016868,2]
[402169230,1768563038338,-500.0,0.00016868,2]
[402169231,1768563038347,-500.0,0.00016868,2]
[402169232,1768563038357,-166.0,0.000169,2]
[402169233,1768563038366,-4577.78931763,0.00016977,2]
[402169234,1768563038375,-250.0,0.00017,2]
[402169235,1768563038385,-2000.0,0.00017,2]
[402169236,1768563038395,-500.0,0.00017039,2]
[402169237,1768563038405,-172.5950476,0.0001707,2]
[402169238,1768563038414,-1092.39,0.0001707,2]
[402169239,1768563038424,-642.94,0.00017077,2]
[402169240,1768563038432,-404.92013765,0.00017077,2]
[402169241,1768563038442,-878.65,0.000171,2]
[402169242,1768563038452,-4577.78931763,0.00017131,2]
[402169243,1768563038461,-150.0,0.00017233,2]
[402169244,1768563038471,-3398.57848277,0.00017251,2]
[402169245,1768563038480,-4577.78931763,0.00017285,2]
[402169246,1768563038489,-2500.0,0.00017325,2]
[402169247,1768563038498,-5074.53355401,0.00017325,2]
[402169248,1768563038507,-246.180182,0.00017325,2]